Cogmind - Beta 17 @@@ ROGUE MODE // 2026.07.23 @ 15:41:35 Player: V1-Dll Result: Destroyed by TC-5F0(R) with Subdweller Machine Gun Performance ------------- Evolutions (0) 0 Regions Visited (3) 600 Robots Destroyed (38) 190 Value Destroyed (854) 854 Prototype IDs (0) 0 Alien Tech Used (0) 0 Bonus (-150) -150 TOTAL SCORE: 1494 Bonus ------- Follower Combat Kills 39 Friendly Fire -189 Cogmind --------- Core Integrity 0/250 Matter 124/300 Energy 250/250 System Corruption 1% Temperature Cool (0) Movement Rolling (105) Ox1 Location -10/Subcaves Parts ------- > --- POWER (1) -------- Ion Engine > --- PROPULSION (2) --- Armored Wheel Armored Wheel > --- UTILITY (2) ------ Large Storage Unit Terrain Scanner > --- WEAPON (2) ------- Rocket Launcher Rocket Launcher > --- INVENTORY (15) --- Light Treads Light Treads Armored Wheel Improved Heat Sink Humpback Compact Matter Pod (150) Field Laser Shotgun Shotgun Battle Rifle Heavy Mace Peak State ------------ > --- POWER ------------ Light Angular Momentum Engine > --- PROPULSION ------- Armored Wheel Armored Wheel > --- UTILITY ---------- Large Storage Unit Light Armor Plating > --- WEAPON ----------- Field Laser Shotgun > --- INVENTORY -------- Ion Engine Light Treads Light Treads Armored Wheel Armored Wheel Improved Heat Sink Compact Matter Pod Improved Terrain Scanner Shotgun Shotgun Flak Cannon Rocket Launcher Rocket Launcher Heavy Mace [Rating: 19] Favorites ----------- Power Ion Engine Engine Ion Engine Propulsion Armored Wheel Treads Light Treads Wheel Armored Wheel Utility Large Storage Unit Device Improved Terrain Scanner Storage Large Storage Unit Protection Light Armor Plating Weapon Shotgun Energy Gun Field Laser Ballistic Gun Shotgun Ballistic Cannon Flak Cannon Launcher Rocket Launcher Impact Weapon Heavy Mace Build | -11 -10 -10 -10 ------- Run | Yrd Mat Min Sub Slots Evolved . | . . . . Power . | . . . . Propulsion . | . . . . Utility . | . . . . Weapon . | . . . . Parts Attached 27 | 8 8 3 8 Power 3 | 2 . 1 . Engine 3 | 2 . 1 . Core . | . . . . Reactor . | . . . . Propulsion 5 | 2 2 . 1 Treads 2 | 2 . . . Leg . | . . . . Wheel 3 | . 2 . 1 Hover . | . . . . Flight . | . . . . Utility 5 | 1 2 . 2 Device 2 | . . . 2 Storage 2 | 1 1 . . Processor . | . . . . Hackware . | . . . . Protection 1 | . 1 . . Artifact . | . . . . Weapon 14 | 3 4 2 5 Energy Gun 3 | 2 . 1 . Energy Cannon . | . . . . Ballistic Gun 5 | 1 2 . 2 Ballistic Cannon 2 | . . 1 1 Launcher 3 | . 2 . 1 Special Weapon . | . . . . Impact Weapon 1 | . . . 1 Slashing Weapon . | . . . . Piercing Weapon . | . . . . Special Melee Weapon . | . . . . Unidentified Prototypes . | . . . . Parts Lost 7 | . 1 . 6 Power 1 | . . . 1 Propulsion 1 | . . . 1 Utility 2 | . . . 2 Weapon 3 | . 1 . 2 Highest Loss Streak 4 | . 1 . 4 To Critical Strikes . | . . . . Average Backups 10 | 1 6 12 13 Power . | . . . . Propulsion 3 | . 3 4 3 Utility 1 | . . 2 2 Weapon 4 | . 3 5 6 Tool/Special . | . . . . Unused Backups 6 | . 1 . 5 Power . | . . . . Propulsion 2 | . 1 . 1 Utility 3 | . . . 3 Weapon 1 | . . . 1 Tool/Special . | . . . . Average Slot Usage (%) 91 | . 84 100 88 Engine 11 | . 14 14 5 Treads 6 | . 22 . . Wheel 21 | . 5 28 28 Device 3 | . . . 9 Storage 14 | . 14 14 14 Protection 6 | . 2 14 1 Energy Gun 4 | . 4 6 1 Ballistic Gun 10 | . 17 8 5 Ballistic Cannon 9 | . . 9 18 Launcher 2 | . 3 3 1 Peak Build Rating 19 | 6 12 19 19 Average Rating 13 | 4 8 17 14 On Entrance 9 | . 6 12 19 Avg Prop Armor Cover (%) . | . . . . Naked Turns . | . . . . Heaviest Build 41 | 14 35 41 41 Greatest Support 40 | 40 40 24 24 Greatest Overweight (x) 2 | . 1 1 2 Average Overweight (x) . | . . 1 1 Largest Inventory Capacity 15 | 8 15 15 15 Average Capacity 13 | 6 9 15 15 Most Carried 15 | 2 8 14 15 Average Carried 10 | 1 6 12 13 Final Capacity 15 | 8 15 15 15 Final Carried 14 | 2 8 14 12 Class Distribution -------------------- 100% | Mutant Dominant Class ---------------- Mutant | -10/Materials Mutant | -10/Mines Mutant | -10/Subcaves Resources | -11 -10 -10 -10 ----------- Run | Yrd Mat Min Sub Matter Collected 1032 | 195 164 413 260 Remotely . | . . . . Salvage Created 723 | . 248 253 222 Parts 47 | . 19 20 8 Haulers Intercepted . | . . . . Recyclers Shooed . | . . . . Parts Field Recycled . | . . . . Retrieved Matter . | . . . . Parts Self-Destructed 11 | . . . 11 Prevented . | . . . . Parts Restored . | . . . . Kills | -11 -10 -10 -10 ------- Run | Yrd Mat Min Sub Combat Hostiles Destroyed 34 | . 10 13 11 Melee 1 | . . . 1 Guns 14 | . 6 6 2 Cannons 10 | . . 4 6 AOE 9 | . 4 3 2 Classes Destroyed 5 | . 3 1 1 Worker 2 | . 1 1 . Builder 1 | . . 1 . Swarmer 17 | . 6 10 1 Grunt 7 | . 4 3 . Subdweller 10 | . . . 10 Thug 1 | . . 1 . Best Kill Streak 4 | . 4 4 2 Combat Bots Only 4 | . 3 4 2 Max Kills in Single Turn 3 | . 3 2 1 Gunslinging 1 | . . 1 . Exploded 3 | . 3 2 1 Melee 1 | . . . 1 Uniques/NPCs Destroyed . | . . . . Combat | -11 -10 -10 -10 -------- Run | Yrd Mat Min Sub Hostile Shots Fired 121 | . 33 28 60 Missed 37 | . 8 10 19 Hits 84 | . 25 18 41 Projectile 84 | . 25 18 41 AOE 1 | . . . 1 Critical Strikes 1 | . . 1 . Damage Taken 1413 | . 264 204 945 Core 263 | . 54 17 192 Absorbed by Shields . | . . . . Core Remaining (%) 100 | 100 . . . Volleys Fired 79 | . 23 22 34 Largest 2 | . 2 2 2 Hottest 100 | . 80 100 100 Shots Fired 145 | . 42 37 66 Gun 77 | . 41 20 16 Cannon 60 | . . 14 46 Launcher 8 | . 1 3 4 Special . | . . . . Kinetic 107 | . 26 28 53 Thermal 15 | . . 6 9 Explosive 8 | . 1 3 4 Electromagnetic 15 | . 15 . . Robot Hit Streak 11 | . 9 6 11 Robot Miss Streak 6 | . 4 6 4 Penetration Max . | . . . . Secondary Targets 1 | . . 1 . Max Gunslinging Chain 1 | . . 1 . Shots Hit Robots 113 | . 27 30 56 Core Hits 73 | . 17 27 29 Critical Kills 1 | . . 1 . Critical Parts Destroyed 1 | . . . 1 Critical Strikes 2 | . . 1 1 Destroy 1 | . . 1 . Smash 1 | . . . 1 Melee Attacks 5 | . . . 5 Impact 5 | . . . 5 Slashing . | . . . . Piercing . | . . . . Sneak Attacks . | . . . . Combat Hostiles . | . . . . Follow-up Attacks . | . . . . Damage Inflicted 2857 | . 671 894 1292 Guns 773 | . 426 269 78 Cannons 1006 | . . 231 775 Explosions 940 | . 244 349 347 Melee 92 | . . . 92 Ramming 46 | . 1 45 . Kinetic 1637 | . 371 430 836 Thermal 125 | . 38 70 17 Explosive 902 | . 206 349 347 Electromagnetic 55 | . 55 . . Impact 92 | . . . 92 Slashing . | . . . . Piercing . | . . . . Highest Corruption 1 | . 1 1 1 Average Corruption 1 | . 1 1 1 Corruption Purged . | . . . . Corruption Blocked . | . . . . Effects 16 | . 5 6 5 Message Errors 7 | . 3 3 1 Matter Fused 3 | . . 1 2 Heat Flow Errors 3 | . 1 1 1 Energy Discharges 1 | . . 1 . Data Loss (minor) 2 | . 1 . 1 Overload Shots . | . . . . Overflow Damage 108 | . 9 57 42 Projectiles . | . . . . Explosions 79 | . 9 57 13 Melee 29 | . . . 29 Knockbacks 20 | . . 7 13 Impact . | . . . . Kinetic 19 | . . 6 13 Secondary 1 | . . 1 . Self-Inflicted Damage 49 | . . 49 . Shots 1 | . . 1 . Rammed 5 | . 1 4 . Targets Rammed 5 | . 1 4 . Kicked . | . . . . Crushed . | . . . . Highest Temperature 240 | . 108 240 83 Average Temperature 68 | . 45 91 12 Received Heat Transfer 270 | . 81 . 189 Siege Activations . | . . . . Martial Activations . | . . . . Shielding Activations . | . . . . Robots Disrupted . | . . . . Combat Hostiles . | . . . . Robots Corrupted . | . . . . Combat Hostiles . | . . . . Parts Fried . | . . . . Impact Corruptions 1 | . . . 1 Robots Melted . | . . . . Combat Hostiles . | . . . . Parts Melted 1 | . . 1 . Heat Transferred 235 | . 50 148 37 Parts Sabotaged . | . . . . Parts Stolen . | . . . . Parts Stripped . | . . . . Power Chain Reactions 1 | . 1 . . Alert | -11 -10 -10 -10 ------- Run | Yrd Mat Min Sub Maximum Alert Level . | . . . . Low Security (%) 100 | 100 100 100 . Level 1 . | . . . . Level 2 . | . . . . Level 3 . | . . . . Level 4 . | . . . . Level 5 . | . . . . High Security . | . . . . Max Security . | . . . . Peak Influence 173 | . 97 173 . Initial 3 | . . 3 . Average 66 | . 35 98 . Influence Increases 812 | . 278 393 141 Destroy 0b10 Robot/C 540 | . 200 280 60 Destroy 0b10 Robot/NC 15 | . 5 10 . Destroy Leader 90 | . 40 50 . Allied During Kill 25 | . . 19 6 Successful Hack 18 | . 18 . . Destroy Structure 34 | . 15 19 . Lose Combat Pursuer 90 | . . 15 75 Influence Decreases 812 | . 269 355 188 Entered New Map 31 | . . 6 25 Time Decay 691 | . 259 349 83 Lost Part 30 | . 10 . 20 Lost Ally 60 | . . . 60 Squads Dispatched 2 | . 1 1 . Investigation 1 | . . 1 . Extermination . | . . . . Reinforcement 1 | . 1 . . Assault . | . . . . Garrison . | . . . . Intercept . | . . . . Searches Triggered . | . . . . Construction Impeded . | . . . . Haulers Reinforced . | . . . . Active Scanning Responses . | . . . . Cargo Convoy Interrupts . | . . . . Stealth | -11 -10 -10 -10 --------- Run | Yrd Mat Min Sub Distress Signals 2 | . 2 . . Communications Jammed . | . . . . Distress Signals . | . . . . Times Spotted 52 | . 19 17 16 Peak Tracking Total 5 | . 5 5 3 Tactical Retreats 3 | . . 1 2 Traps | -11 -10 -10 -10 ------- Run | Yrd Mat Min Sub Traps Triggered 4 | . 2 . 2 Indirectly . | . . . . Trap Hack Attempts . | . . . . Triggered . | . . . . Disarmed . | . . . . Reprogrammed . | . . . . Reused . | . . . . Traps Extracted . | . . . . Installed . | . . . . Triggered . | . . . . Machines | -11 -10 -10 -10 ---------- Run | Yrd Mat Min Sub Machines Disabled 1 | . . . 1 Max in Single Turn . | . . . . Machines Repaired . | . . . . Machines Dismantled . | . . . . Machines Sabotaged . | . . . . Overloaded Fab Kills . | . . . . Hacking | -11 -10 -10 -10 --------- Run | Yrd Mat Min Sub Machines Accessed 3 | . 2 1 . Terminals 2 | . 2 . . Fabricators . | . . . . Repair Stations . | . . . . Recycling Units . | . . . . Scanalyzers . | . . . . Garrison Access . | . . . . Total Hacks 10 | . 9 1 . Successful 5 | . 4 1 . Failed 5 | . 5 . . Catastrophic . | . . . . Database Lockouts . | . . . . Manual 9 | . 9 . . Terminals 9 | . 9 . . Fabricators . | . . . . Repair Stations . | . . . . Recycling Units . | . . . . Scanalyzers . | . . . . Garrison Access . | . . . . Terminal Hacks 5 | . 4 1 . Robot Analysis 4 | . 4 . . Open Door 1 | . . 1 . Fabricator Hacks . | . . . . Repair Station Hacks . | . . . . Recycling Unit Hacks . | . . . . Scanalyzer . | . . . . Garrison Access Hacks . | . . . . Unauthorized Hacks . | . . . . Terminals . | . . . . Fabricators . | . . . . Repair Stations . | . . . . Recycling Units . | . . . . Scanalyzers . | . . . . Garrison Access . | . . . . Data Cores Recovered . | . . . . Used . | . . . . Hacking Detections 2 | . 2 . . Full Trace Events . | . . . . Feedback Events . | . . . . Feedback Blocked . | . . . . Robot Schematics Acquired . | . . . . Robots Built . | . . . . Authchips . | . . . . Time . | . . . . Total Robot Build Rating . | . . . . Part Schematics Acquired . | . . . . Parts Built . | . . . . Authchips . | . . . . Time . | . . . . Total Part Build Rating . | . . . . Part Studies Acquired . | . . . . Parts Repaired . | . . . . Time . | . . . . Parts Recycled . | . . . . Recycled Matter . | . . . . Retrieved Matter . | . . . . Retrieved Components . | . . . . Parts Scanalyzed . | . . . . Part Schematics Acquired . | . . . . Parts Damaged . | . . . . Bothacking | -11 -10 -10 -10 ------------ Run | Yrd Mat Min Sub Used RIF Installer . | . . . . Robots Hacked . | . . . . Non-combat . | . . . . Combat . | . . . . Robot Hacks Applied . | . . . . Relay Couplers Released . | . . . . Fabnet Peak Effective % . | . . . . Robots Rewired . | . . . . Allies Hacked . | . . . . Hacks Repelled . | . . . . Allies | -11 -10 -10 -10 -------- Run | Yrd Mat Min Sub Total Allies 3 | . . 3 . Largest Group 3 | . . 3 3 Highest-Rated Group 40 | . . 40 40 Highest-Rated Ally 16 | . . 16 16 Total Orders . | . . . . Ally Attacks 14 | . . 6 8 Total Damage 144 | . . 66 78 Kills 3 | . . 1 2 Allies Corrupted . | . . . . Allies Melted . | . . . . Intel | -11 -10 -10 -10 ------- Run | Yrd Mat Min Sub Active Infowar (turns) 461 | . . . 461 Terrain 461 | . . . 461 Robot Analysis Total 4 | . 4 . . Derelict Logs Recovered 1 | . . 1 . Drone Launches . | . . . . Drone Recoveries . | . . . . Exploration | -11 -10 -10 -10 ------------- Run | Yrd Mat Min Sub Turns Passed 2150 | 93 608 803 646 Spaces Moved 1530 | 52 356 662 460 Core 4 | 4 . . . Treads 295 | 48 247 . . Legs . | . . . . Wheels 1231 | . 109 662 460 Hover . | . . . . Flight . | . . . . Fastest Speed 50 | 50 105 105 105 Average Speed 115 | 151 143 105 105 Slowest Speed 160 | 160 160 105 120 Overloaded Moves . | . . . . Propulsion Burnouts . | . . . . Robots Hopped . | . . . . Potential Cave-ins . | . . . . Cave-ins Triggered . | . . . . Exploration Rate (%) 50 | 3 66 99 34 Regions Visited 3 Branch Regions 2 Pre-discovered Areas . | . . . . Known Exits Taken . | . . . . Unknown Exits Taken 3 | 1 1 1 . Scrap Searched 2 | . . 1 1 Spaces Dug . | . . . . Terrain Destroyed 85 | . 13 25 47 Melee . | . . . . Projectile . | . . . . AOE 85 | . 13 25 47 Terrain Rammed . | . . . . Walls Destroyed . | . . . . Machines Disabled . | . . . . Actions | -11 -10 -10 -10 --------- Run | Yrd Mat Min Sub Total 1750 | 63 410 730 547 Wait 72 | 2 6 32 32 Move 1527 | 51 355 661 460 Hop . | . . . . Pick Up 16 | 1 8 5 2 Fast Attach 17 | 7 7 1 2 Attach 5 | . . . 5 Detach 1 | . . . 1 Swap 14 | 1 4 4 5 Drop 9 | 1 6 1 1 Fire 79 | . 23 22 34 Melee 5 | . . . 5 Ram 4 | . . 4 . Kick . | . . . . Crush 1 | . 1 . . Escape Stasis . | . . . . Rewire . | . . . . Trap . | . . . . Miscellaneous . | . . . . Route ------- -11/Scrapyard -10/Materials (discovered 3 exits: *Mat x2 / *Min) -10/Mines (discovered 3 exits: *Mat x2 / [*Sub]) -10/Subcaves (discovered 1 exit: [*Rec]) History --------- Turn | Location | Event 3 | -11/Scrapyard | Discovered new exit (range 15) 94 | -11/Scrapyard | Entered Materials 312 | -10/Materials | Build established: Mutant 334 | -10/Materials | Discovered new exit (range 8) 541 | -10/Materials | Discovered new exit (range 16) 605 | -10/Materials | Discovered new exit (range 7) 702 | -10/Materials | Entered Mines 760 | -10/Mines | Met a Derelict shopkeep closing up shop 803 | -10/Mines | Discovered new exit (range 10) 934 | -10/Mines | Found a hidden stash of uninstalled traps 953 | -10/Mines | Assisted by bots powering up and referring to "LRC-V3" 997 | -10/Mines | Identified exit to Materials 1488 | -10/Mines | Discovered new exit (range 6) 1505 | -10/Mines | Entered Subcaves 1505 | -10/Subcaves | Accompanied by 3 allies 1526 | -10/Subcaves | Discovered new exit (range 11) 1539 | -10/Subcaves | Shifting Twisted Machinery released Battle Cannon 1539 | -10/Subcaves | Shifting Twisted Machinery released Battle Rifle 1548 | -10/Subcaves | Lost 3 allies 1564 | -10/Subcaves | Core integrity fell below 50% 1975 | -10/Subcaves | Core integrity fell below 20% 2009 | -10/Subcaves | Lost 4 parts (1n1u2w) 2053 | -10/Subcaves | Ambushed by Subdwellers from Twisted Machinery 2151 | -10/Subcaves | Destroyed by TC-5F0(R) with Subdweller Machine Gun Last Messages --------------- 01978_ Imp. Terrain Scanner destroyed. 01982_ Destroyed Scrap Shield. 01982_ 9Z-80H(R) destroyed. 01988_ Acquired 4 matter. 01989_ Acquired 5 matter. 01992_ Acquired 4 matter. 01995_ Acquired Terrain Scanner. 02007_ System corrupted: Matter fused (-10). 02053_ JN-N2A(R) emerges from the Twisted Machinery. 02057_ Destroyed Disposable Heat Sink. 02057_ GN-O17(R) destroyed. 02060_ JN-N2A(R) destroyed. 02061_ The unstable cave ceiling collapses. 02069_ Acquired 15 matter. 02071_ Acquired 25 matter. 02073_ Acquired Humpback. 02093_ The unstable cave ceiling collapses. 02150_ CJ-A0Z(R) destroyed. 02151_ LZ-1OF(R): "ARGHSUB!" Map ----- +----------------------------------------------------+ | ?????????????????##"## ##???????????????????? | | ??????????#???##?# # ##????????????????????? | | ?????????????#?### " " "#????????????????????? | | ???????????????# "" " ##??#?????????????????? | | ?????????????#?# " #??????#??????????????? | | ???????????????# # "#?????????????????????? | | ??????????????## [ ##?????????#???????????? | | ????????????#?# [ #??#???????????????????? | | ??????????????## #???#?#????????????????? | | ?????#?????????# # #????##????????????????? | | ???????????#???## ####??????????????????????? | | ????????????????# !#?????????????????????#???? | | ?????????#????? !%R?????????????????????????? | | ???????????????# #???????????????????#????? | | ???????????????# R #????????????????????????? | | ???????????#?#?? #????????????#???????????? | | ???????????????? #####?###??#??#??????????# | | ?????????????#??? ## ##??????###?#????# | | ?????????????????# #???????# ###??## | | ????????????#????# ##??????## #??# | | ??????????????#??# #####???#?? #??#= | | ?????????????????## ###?# ###???## #??# | | ??????????????????# #???# ##???# #?## | | ??????????????????# #??## ##### ### | | ??????????????????# ##?## | | ???????????#??????# @###??# | | ??????????????????# ##??## | | ??????????????????## #### # | | ????????????#??????## ### ### #### | | ??????????????????#?## ##?## #?####??? | | ?????????????????????## ##?### #??###### | | ??????????????????????## ##?## ##?## ## | | ????????????????#??????## #??# ###???# | | ????????????????????????## #### ##???### | | ?????????????????????????#### ##?????# | | ????????????????????#??????# ##??#???## ### | | ??????????????????????????# ##???????## ## | | ??????????????????????????######????????# ## | | ????????????????????????????????????????## #^ | | ??????????????????#?#????#??#??????????### # | | ?????????????????????????#???????????### | | ?????????????????????????##?#????????# | | ???????????????????????????#?????????# " | | ????????????????????????????#????????## " | | ??????????????????????????????????????## ^# "" | | ??????????????????????????????????????# # "# | | ??????????????????????????????????????##[ # ""# | | ??????????????????????????????????????##|## ## | | ??????????????????????????????????????#%##?###? | | ??????????????????????????????????????###??#??? | +----------------------------------------------------+ Best States ------------- Heat Dissipation 25 Energy Generation 18 Energy Capacity 250 Matter Stores 300 Matter Capacity 300 Sight Range 16 Terrain Scan Range 16 Terrain Scan Density 10 Armor Coverage 150 Evasion (%) 40 Recoil Reduction 2 Item Schematics ----------------- None Robot Schematics ------------------ None Fabricated ------------ Nothing Repaired ---------- Nothing Studied --------- None Alien Tech Used ----------------- None Achievements -------------- None Challenges ------------ None Game ------ Seed TransdimensionalFireBoregun Manual? 0 Play Time 00:19:33 Cumulative 337.7 hours Start 2026.07.23 @ 15:24:47 End 2026.07.23 @ 15:41:35 Sessions 1 Manual Loads 0 Difficulty Rogue Special Mode None Game No. 191 Rogue 117 Adventurer 74 Explorer 0 Win Type - Total 17 Types 14/0/0/3/0/0/0/0/0/0 Lore% 72 Gallery% 66 Achievement% 50 Wizard Run 0 Options --------- Layout 2 ASCII 0 Keyboard 0 Movement Mouse Keybinds 0 Fullscreen 1 Font 32/SmallcapsGlow Map View 50x44 Zoom Use 0% Tactical HUD 1 Map Filters NONE Filters NONE Steam 1 RUN: a5a92695-bef0-434a-8b23-7f979b8b7c92